Department family,Entity,Date,Expense type,Expense area,Supplier,Transaction No,Amount,Description,Post Code
Departmen of Health,NHS Business Services Authority,02/12/2020,Rates Charges,Corporate Services,NEWCASTLE CITY COUNCIL,0050038397,"33,289.00",RATES DEC2020 BRIDGE,NE99 2PT
Departmen of Health,NHS Business Services Authority,11/12/2020,Ex Gratia Payments,Pensions Division,SHARON ANN WHITE,0050038400,"27,909.89",SD73061614 EX-GRATIA,PO33 1BY
Departmen of Health,NHS Business Services Authority,15/12/2020,Apprenticeship Levy,Corporate Services,HM REVENUE & CUSTOMS 948PX00194660,0050038401,"40,346.00",948PX00194660 NOV20,NE98 1ZZ
Departmen of Health,NHS Business Services Authority,15/12/2020,Statutory Payment,Statutory Payments,HM REVENUE & CUSTOMS 948PX00194660,0050038401,"1,891,688.21",948PX00194660 NOV20,NE98 1ZZ
Departmen of Health,NHS Business Services Authority,08/12/2020,Query,Business Solutions,AGILISYS LIMITED,0080116440,"21,499.16",Provision of DataDog services on AWS,W12 7RZ
Departmen of Health,NHS Business Services Authority,11/12/2020,Temporary Staff,Prescription Pricing Division,MASTEK UK LTD,0080116972,"58,400.00",SOW42 - RINA Integration Extension,RG1 8BW
Departmen of Health,NHS Business Services Authority,18/12/2020,Postage Charges,Prescription Pricing Division,ROYAL MAIL,0080117087,"22,671.04",A/C 0912819049,S49 1HQ
Departmen of Health,NHS Business Services Authority,08/12/2020,Hard FM Contract,Corporate Services,KIER FACILITIES SERVICES LTD,0080117117,"57,340.88",CE-31 - Kier Phase 2 Contract Extension,RG21 4HG
Departmen of Health,NHS Business Services Authority,01/12/2020,Service Charges General,Corporate Services,CANAL & RIVER TRUST,0080117138,"100,736.84",SC 25 Dec 20 - 24 Mar 21,LS9 8PB
Departmen of Health,NHS Business Services Authority,11/12/2020,Query,Corporate Services,CAPITA BUSINESS SERVICES LTD,0080117142,"95,158.34",Oracle - 6295562 - Datacentre,DL1 9HN
Departmen of Health,NHS Business Services Authority,11/12/2020,Professional Fees,Prescription Pricing Division,CAPITA BUSINESS SERVICES LTD,0080117143,"28,692.50",Exit MIS Transition (Contractor),DL1 9HN
Departmen of Health,NHS Business Services Authority,11/12/2020,Professional Fees,Prescription Pricing Division,CAPITA BUSINESS SERVICES LTD,0080117146,"26,724.06",WAN Charges,DL1 9HN
Departmen of Health,NHS Business Services Authority,08/12/2020,Professional Fees,Corporate Services,GOVERNMENT ACTUARY'S DEPARTMENT,0080117210,"21,261.83",ACTUARIAL SERVICES PE 31/10/20,EC4A 1AB
Departmen of Health,NHS Business Services Authority,01/12/2020,Rent,Corporate Services,EMERSON MANAGEMENT SERVICES,0080117221,"84,200.00",Rent 04 Nov - 24 Dec 20,SK9 7LF
Departmen of Health,NHS Business Services Authority,01/12/2020,Statutory Payments,Statutory Payments,CABINET OFFICE CIVIL SERVICE PENSIONS,0080117230,"57,053.99",CONTRIBUTIONS NOV2020,RG24 9NW
Departmen of Health,NHS Business Services Authority,01/12/2020,Temporary Staff,Prescription Pricing Division,ALEXANDER MANN SOLUTIONS,0080117296,"35,858.45",PSR VARIOUS B15002 WE 25/10/20,
Departmen of Health,NHS Business Services Authority,01/12/2020,Temporary Staff,Prescription Pricing Division,ALEXANDER MANN SOLUTIONS,0080117313,"44,488.94",PSR VARIOUS B15002 WE 15/11/20,
Departmen of Health,NHS Business Services Authority,01/12/2020,Subsistence,Corporate Services,ALEXANDER MANN SOLUTIONS,0080117317,"37,417.68",TEMP STAFF,
Departmen of Health,NHS Business Services Authority,01/12/2020,Temporary Staff,Prescription Pricing Division,ALEXANDER MANN SOLUTIONS,0080117323,"26,805.23",PRS VARIOUS B15002 W/E 18&W/E 25.10.20,
Departmen of Health,NHS Business Services Authority,01/12/2020,Data Communication Lines,Business Solutions,INTEGRATED HEALTH PROJECTS,0080117324,682.85,TO-65-  Bridge House and Wakefield,HP2 7TR
Departmen of Health,NHS Business Services Authority,01/12/2020,Query,Corporate Services,INTEGRATED HEALTH PROJECTS,0080117324,"240,207.18",TO.CE-60.3 - Door Frame Cracking at,HP2 7TR
Departmen of Health,NHS Business Services Authority,04/12/2020,Printing Charges (External),Prescription Pricing Division,XEROX UK LIMITED,0080117381,"26,841.00",Hologram printing costs for new,LS12 6NJ
Departmen of Health,NHS Business Services Authority,04/12/2020,Software Licences,Prescription Pricing Division,CORA SYSTEMS LTD,0080117382,"80,500.00",Original PO 27274 was raised for year 1,N41 HK23
Departmen of Health,NHS Business Services Authority,04/12/2020,PC Purchases,Prescription Pricing Division,COMPUTACENTER (UK) LTD,0080117472,"142,011.00",Product:  Latitude 5410 BTS i7 16GB 256S,AL10 9TW
Departmen of Health,NHS Business Services Authority,04/12/2020,Temporary Staff,Prescription Pricing Division,AGILISYS LIMITED,0080117474,"64,369.62",Agilisys Business Analyst - Principal Co,W12 7RZ
Departmen of Health,NHS Business Services Authority,04/12/2020,Temporary Staff,Dental Services Division,QUIZLINE LIMITED,0080117479,"32,400.00",Month: October,SG4 7QJ
Departmen of Health,NHS Business Services Authority,04/12/2020,Temporary Staff,Prescription Pricing Division,ALEXANDER MANN SOLUTIONS,0080117493,"78,354.86",PSR VARIOUS B15002 W/E 22.11.20,
Departmen of Health,NHS Business Services Authority,18/12/2020,Rent,Corporate Services,EMERSON MANAGEMENT SERVICES,0080117532,"122,697.00",Rent 25 Dec 20 - 24 Mar 21,SK9 7LF
Departmen of Health,NHS Business Services Authority,18/12/2020,Bank Charges,Prescription Pricing Division,ALLPAY LIMITED,0080117535,"35,162.38",PPC1 TRANSACTIONS,HR1 3SE
Departmen of Health,NHS Business Services Authority,08/12/2020,Query,Pensions Division,CLAYBROOK COMPUTING LTD,0080117541,"100,000.00",In line with administrators of other,RH10 1UH
Departmen of Health,NHS Business Services Authority,08/12/2020,Temporary Staff,Pensions Division,CLAYBROOK COMPUTING LTD,0080117542,"34,078.00",Calculation and Payment of Interest,RH10 1UH
Departmen of Health,NHS Business Services Authority,11/12/2020,Temporary Staff,Pensions Division,CLAYBROOK COMPUTING LTD,0080117543,"205,000.00",Bereavement Enhancements Phase 3,RH10 1UH
Departmen of Health,NHS Business Services Authority,11/12/2020,Query,Pensions Division,CLAYBROOK COMPUTING LTD,0080117544,"174,117.08",Monthly standard product support and,RH10 1UH
Departmen of Health,NHS Business Services Authority,08/12/2020,Query,Corporate Services,AGILISYS LIMITED,0080117545,"23,891.78",Provision of Cloud and Support Services,W12 7RZ
Departmen of Health,NHS Business Services Authority,08/12/2020,Query,Business Solutions,AGILISYS LIMITED,0080117546,"36,488.23",G10014 Cloud Brokerage Services October,W12 7RZ
Departmen of Health,NHS Business Services Authority,08/12/2020,Query,Business Solutions,AGILISYS LIMITED,0080117547,414.50,G10019 - Cloud Brokerage Services,W12 7RZ
Departmen of Health,NHS Business Services Authority,08/12/2020,Query,Corporate Services,AGILISYS LIMITED,0080117547,"6,816.06",J01006 - Cloud Brokerage Services,W12 7RZ
Departmen of Health,NHS Business Services Authority,08/12/2020,Query,Dental Services Division,AGILISYS LIMITED,0080117547,267.73,D03001 - Cloud Brokerage Services,W12 7RZ
Departmen of Health,NHS Business Services Authority,08/12/2020,Query,Pensions Division,AGILISYS LIMITED,0080117547,"1,251.61",A98034 - Cloud Brokerage Services,W12 7RZ
Departmen of Health,NHS Business Services Authority,08/12/2020,Query,Prescription Pricing Division,AGILISYS LIMITED,0080117547,"56,126.79",B21006 Cloud Brokerage Services October,W12 7RZ
Departmen of Health,NHS Business Services Authority,18/12/2020,Temporary Staff,Prescription Pricing Division,TISSKI LIMITED,0080117611,"52,700.00",Healthy Start SOW14 Fv1 0,CV8 2LG
Departmen of Health,NHS Business Services Authority,11/12/2020,Temporary Staff,Prescription Pricing Division,MASTEK UK LTD,0080117612,"60,150.00",SOW01 Cost Recovery (Capital) B99209,RG1 8BW
Departmen of Health,NHS Business Services Authority,11/12/2020,Professional Fees,Prescription Pricing Division,MASTEK UK LTD,0080117613,"40,587.50",SOW45 Immigration Health Supplement,RG1 8BW
Departmen of Health,NHS Business Services Authority,11/12/2020,Temporary Staff,Prescription Pricing Division,MASTEK UK LTD,0080117614,"24,150.00",SOW39 CCN03 Healthy Start B99195,RG1 8BW
Departmen of Health,NHS Business Services Authority,11/12/2020,Temporary Staff,Prescription Pricing Division,MASTEK UK LTD,0080117617,"63,357.81",SOW35 CCN04 - OHS Delivery B99209,RG1 8BW
Departmen of Health,NHS Business Services Authority,11/12/2020,Professional Fees,Prescription Pricing Division,DIFRENT LTD,0080117633,"306,550.00",NHS Jobs 3 Beta Team 1 Phase 5 Phase 6,W1W 7LT
Departmen of Health,NHS Business Services Authority,22/12/2020,Travel,Supply Chain Management Division,ROYAL UNITED HOSPITALS BATH NHS FOUNDATI,0080117643,"38,890.00",JOANNE STANGER SECONDMENT,BA1 3NG
Departmen of Health,NHS Business Services Authority,11/12/2020,Query,Business Solutions,AGILISYS LIMITED,0080117661,"30,506.50",Azure,W12 7RZ
Departmen of Health,NHS Business Services Authority,22/12/2020,Query,Business Solutions,AGILISYS LIMITED,0080117662,"132,230.22",Back up and Recovery Services,W12 7RZ
Departmen of Health,NHS Business Services Authority,11/12/2020,Query,Corporate Services,COMPASS SERVICES UK & IRELAND LTD,0080117666,"67,356.41",TO.CE-46  - Phase 1 Contract Extension,B45 9PZ
Departmen of Health,NHS Business Services Authority,22/12/2020,Query,Business Solutions,AGILISYS LIMITED,0080117670,"31,185.12",Back up and Recovery Services,W12 7RZ
Departmen of Health,NHS Business Services Authority,22/12/2020,Query,Business Solutions,AGILISYS LIMITED,0080117671,"37,061.80",NHS Cloud - Wintel,W12 7RZ
Departmen of Health,NHS Business Services Authority,11/12/2020,Query,Supply Chain Management Division,IBM UK LTD,0080117674,"1,652,408.17",IBM ESR Service Charges FY20/21,PO6 3AF
Departmen of Health,NHS Business Services Authority,11/12/2020,Query,Supply Chain Management Division,IBM UK LTD,0080117675,"256,998.55",IBM ESR Enhance Support Charges FY20/21,PO6 3AF
Departmen of Health,NHS Business Services Authority,11/12/2020,Query,Supply Chain Management Division,IBM UK LTD,0080117676,"69,904.18",IBM ESR Vitality Charges FY20/21,PO6 3AF
Departmen of Health,NHS Business Services Authority,18/12/2020,Software Licences,Corporate Services,HEALTH & SOCIAL CARE INFORMATION CENTRE,0080117711,"111,130.80",MISC,WF3 1WE
Departmen of Health,NHS Business Services Authority,15/12/2020,Query,Statutory Payments,NHS PENSIONS,0080117729,"375,000.00",INCREASE EMP CONTRIBUTIONS NOV20,FY7 8LG
Departmen of Health,NHS Business Services Authority,15/12/2020,Sun System Maintenance,Prescription Pricing Division,ORACLE CORPORATION UK LTD,0080117730,"148,333.33",Universal Credits for use on Oracle,RG6 1RA
Departmen of Health,NHS Business Services Authority,15/12/2020,Sun System Maintenance,Prescription Pricing Division,ORACLE CORPORATION UK LTD,0080117731,"271,521.79",Oracle Universal Credits to support the,RG6 1RA
Departmen of Health,NHS Business Services Authority,18/12/2020,Temporary Staff,Prescription Pricing Division,ALEXANDER MANN SOLUTIONS,0080117771,"43,700.20",PSR VARIOUS B15002 W/E 29.11.20,
Departmen of Health,NHS Business Services Authority,18/12/2020,Query,Business Solutions,AGILISYS LIMITED,0080117828,"23,615.18",Provision of DataDog services on AWS,W12 7RZ
Departmen of Health,NHS Business Services Authority,22/12/2020,Printing Charges (External),Prescription Pricing Division,XEROX UK LIMITED,0080117829,"32,612.99",MISC,LS12 6NJ
Departmen of Health,NHS Business Services Authority,18/12/2020,Temporary Staff,Prescription Pricing Division,ALEXANDER MANN SOLUTIONS,0080117850,"44,525.26",PSR VARIOUS B15002 WE06/12/20,
Departmen of Health,NHS Business Services Authority,15/12/2020,Software Licences,Prescription Pricing Division,PLURALSIGHT LLC,0080117863,"33,848.66",Pluralsight Enterprise Licences,
Departmen of Health,NHS Business Services Authority,22/12/2020,Temporary Staff,Prescription Pricing Division,ALEXANDER MANN SOLUTIONS,0080117908,"30,385.12",PSR VARIOUS B15002 WE 08/11/20,
Departmen of Health,NHS Business Services Authority,24/12/2020,Temporary Staff,Prescription Pricing Division,AGILISYS LIMITED,0080117953,"55,449.09",Agilisys  Development -  Principal,W12 7RZ
Departmen of Health,NHS Business Services Authority,24/12/2020,Temporary Staff,Corporate Services,AGILISYS LIMITED,0080117954,"52,870.47",Statement of Work,W12 7RZ
Departmen of Health,NHS Business Services Authority,22/12/2020,Query,Pensions Division,MEDIGOLD HEALTH CONSULTANCY,0080117972,"47,209.50",Provision of medical services for,NN4 7BF
Departmen of Health,NHS Business Services Authority,24/12/2020,Professional Fees,Prescription Pricing Division,CAPITA BUSINESS SERVICES LTD,0080117977,"23,618.41",Request for Project Change Form,DL1 9HN
Departmen of Health,NHS Business Services Authority,24/12/2020,Temporary Staff,Pensions Division,ACUITY BUSINESS SOLUTIONS LTD,0080117980,"48,870.00","Consultancy for Pensions Flexibilities,",EX2 8LB
Departmen of Health,NHS Business Services Authority,24/12/2020,Query,Business Solutions,AGILISYS LIMITED,0080117996,478.03,G10019 - Cloud Brokerage Services,W12 7RZ
Departmen of Health,NHS Business Services Authority,24/12/2020,Query,Corporate Services,AGILISYS LIMITED,0080117996,"7,869.57",J01006 - Cloud Brokerage Services,W12 7RZ
Departmen of Health,NHS Business Services Authority,24/12/2020,Query,Dental Services Division,AGILISYS LIMITED,0080117996,277.11,D03001 - Cloud Brokerage Services,W12 7RZ
Departmen of Health,NHS Business Services Authority,24/12/2020,Query,Pensions Division,AGILISYS LIMITED,0080117996,"1,452.09",A08003 - Cloud Brokerage Services,W12 7RZ
Departmen of Health,NHS Business Services Authority,24/12/2020,Query,Prescription Pricing Division,AGILISYS LIMITED,0080117996,"57,352.92",B08006 Cloud Brokerage Services October,W12 7RZ
Departmen of Health,NHS Business Services Authority,24/12/2020,Query,Corporate Services,AGILISYS LIMITED,0080117997,"24,523.62",Provision of Cloud and Support Services,W12 7RZ
Departmen of Health,NHS Business Services Authority,24/12/2020,Query,Business Solutions,AGILISYS LIMITED,0080117998,"40,001.71",G10014 Cloud Brokerage Services October,W12 7RZ
Departmen of Health,NHS Business Services Authority,24/12/2020,Temporary Staff,Prescription Pricing Division,ALEXANDER MANN SOLUTIONS,0080118037,"49,192.96",PSR VARIOUS B15002 W/E 13.12.20,
Departmen of Health,NHS Business Services Authority,24/12/2020,Statutory Payments,Statutory Payments,CABINET OFFICE CIVIL SERVICE PENSIONS,0080118051,"57,057.25",CONTRIBUTIONS DEC2020,RG24 9NW
Departmen of Health,NHS Business Services Authority,31/12/2020,Professional Fees,Dental Services Division,CAPITA IB SOLUTIONS (UK) LTD,0080118059,"370,178.00","Software Support, Maintenance and",DL1 9HN
Departmen of Health,NHS Business Services Authority,24/12/2020,Hard FM Contract,Corporate Services,KIER FACILITIES SERVICES LTD,0080118061,"57,340.88",CE-31 - Kier Phase 2 Contract Extension,RG21 4HG
Departmen of Health,NHS Business Services Authority,24/12/2020,Query,Corporate Services,COMPASS SERVICES UK & IRELAND LTD,0080118068,"103,472.17",Phase 2 Contract Extension for the,B45 9PZ
Departmen of Health,NHS Business Services Authority,24/12/2020,Query,Business Solutions,ATOS IT SERVICES UK LTD,0080118078,"171,526.16",Fixed and Variable contract charges for,WV10 6UH
Departmen of Health,NHS Business Services Authority,31/12/2020,Query,Business Solutions,AGILISYS LIMITED,0080118160,"25,848.79",Provision of DataDog services on AWS,W12 7RZ
Departmen of Health,NHS Business Services Authority,01/12/2020,Pensions Division,Pensions Division,,,"1,579,490.40",Payments to Pensioners,
Departmen of Health,NHS Business Services Authority,01/12/2020,Dental Contractors,Dental Contractors,,,"221,143,260.00",Payments to Dental Contractors,
Departmen of Health,NHS Business Services Authority,01/12/2020,Pharmacy Contractors,Prescription Pricing ,,," 727,460,328.93 ",Payments to Pharmacy Contractors,
Departmen of Health,NHS Business Services Authority,31/12/2020,Pharmacy Contractors,Prescription Pricing ,,," 665,829,681.00 ",Payments to Pharmacy Contractors,
Departmen of Health,NHS Business Services Authority,31/12/2020,Pharmacy Contractors,Prescription Pricing ,,," 112,902,499.62 ",Payments to Pharmacy Contractors,
Departmen of Health,NHS Business Services Authority,31/12/2020,Pharmacy Contractors,Prescription Pricing ,,," 31,170,967.19 ",Payments to Pharmacy Contractors,
Departmen of Health,NHS Business Services Authority,01/12/2020,Pharmacy Contractors,Prescription Pricing ,,," 16,764,512.95 ",Payments to Pharmacy Contractors,
Departmen of Health,NHS Business Services Authority,01/12/2020,Pharmacy Contractors,Prescription Pricing ,,," 12,144,674.52 ",Payments to Pharmacy Contractors,
Departmen of Health,NHS Business Services Authority,31/12/2020,Pharmacy Contractors,Prescription Pricing ,,," 10,366,526.57 ",Payments to Pharmacy Contractors,
Departmen of Health,NHS Business Services Authority,31/12/2020,Pharmacy Contractors,Prescription Pricing ,,," 3,186,894.91 ",Payments to Pharmacy Contractors,
Departmen of Health,NHS Business Services Authority,31/12/2020,Pharmacy Contractors,Prescription Pricing ,,," 3,168,873.36 ",Payments to Pharmacy Contractors,
Departmen of Health,NHS Business Services Authority,31/12/2020,Pharmacy Contractors,Prescription Pricing ,,," 2,015,272.57 ",Payments to Pharmacy Contractors,
Departmen of Health,NHS Business Services Authority,31/12/2020,Pharmacy Contractors,Prescription Pricing ,,," 1,910,305.32 ",Payments to Pharmacy Contractors,
Departmen of Health,NHS Business Services Authority,31/12/2020,Pharmacy Contractors,Prescription Pricing ,,," 1,802,864.32 ",Payments to Pharmacy Contractors,
Departmen of Health,NHS Business Services Authority,03/12/2020,Pharmacy Contractors,Prescription Pricing ,,," 1,484,632.49 ",Payments to Pharmacy Contractors,
Departmen of Health,NHS Business Services Authority,31/12/2020,Pharmacy Contractors,Prescription Pricing ,,," 1,180,299.81 ",Payments to Pharmacy Contractors,
Departmen of Health,NHS Business Services Authority,02/12/2020,Pharmacy Contractors,Prescription Pricing ,,," 963,578.42 ",Payments to Pharmacy Contractors,
Departmen of Health,NHS Business Services Authority,07/12/2020,Pharmacy Contractors,Prescription Pricing ,,," 564,967.56 ",Payments to Pharmacy Contractors,
Departmen of Health,NHS Business Services Authority,01/12/2020,Pharmacy Contractors,Prescription Pricing ,,," 438,443.80 ",Payments to Pharmacy Contractors,
